{"text_format":"1","workbook":"xlsx","n_sheets":3,"sheets":["Masque de saisie","Recap","Données"],"not_rendered":{"charts":0,"images":17,"macros":1,"external_links":0,"defined_names":0,"comments":0,"pivot_tables":0},"unopened":[],"bounds":{"document_bytes":16777216,"sheet_cells":100000,"rows_first":2000,"rows_last":500,"rows_between":2000,"halvings":0,"cell_chars":16384,"cell_head_chars":4096},"cells_cut":0,"cells_raw":0,"read":"whole","date_system":"1900"}

{"sheet":"Masque de saisie","index":0,"n_rows":34,"n_cols":4,"rows_kept":34,"cut":false,"hidden":false,"merged":[[1,1,1,2],[1,3,1,4]]}
[]
[null,"FICHE DE SUIVI D'AUDIT",null,{"$f":"TODAY()","v":"2016-03-23"}]
[]
[null,"Type d'audit:"]
[null,"Libellé de l'audit:"]
[]
[null,"Organisme:"]
[]
[null,"Responsable de mission:"]
[]
[null,"Auditeurs:"]
[]
[]
[]
[]
[null,"Prestataire:"]
[null,"REALISATION DE L'AUDIT",null,"Réal."]
[null,"Commande du Diagnostic préalable:",null,false]
[null,"Formulation du bon de commande:",{"$f":"IF(C18=\"\",\"\",C18+30)","v":""},false]
[null,"Remise du rapport provisoire:",{"$f":"IF(C18=\"\",\"\",C19+60)","v":""},false]
[null,"Phase contradictoire:",{"$f":"IF(C18=\"\",\"\",C20+15)","v":""},false]
[null,"Rapport définitif:",{"$f":"IF(C18=\"\",\"\",C21+30)","v":""},false]
[null,"Diffusion à l'organisme:",{"$f":"IF(C18=\"\",\"\",C22+15)","v":""},false]
[null,"Séminaire de restitution:",{"$f":"IF(C18=\"\",\"\",C23+15)","v":""},false]
[null,"Projet de plan d'action:",{"$f":"IF(C18=\"\",\"\",C24+60)","v":""},false]
[null,"Plan d'action validé:",{"$f":"IF(C18=\"\",\"\",C25+30)","v":""},false]
[]
[null,"SUIVI DES RECOMMANDATIONS"]
[null,"Suivi SEM1:",{"$f":"IF(C18=\"\",\"\",C26+180)","v":""},false]
[null,"Suivi SEM2:",{"$f":"IF(C18=\"\",\"\",C29+180)","v":""},false]
[null,"Suivi SEM3:",{"$f":"IF(C18=\"\",\"\",C30+180)","v":""},false]
[null,"Suivi SEM4:",{"$f":"IF(C18=\"\",\"\",C31+180)","v":""},false]
[null,"Suivi SEM5:",{"$f":"IF(C18=\"\",\"\",C32+180)","v":""},false]
[null,"Suivi SEM6:",{"$f":"IF(C18=\"\",\"\",C33+180)","v":""},false]

{"sheet":"Recap","index":1,"n_rows":3,"n_cols":23,"rows_kept":3,"cut":false,"hidden":false,"merged":[[0,0,0,7],[0,8,0,16],[0,17,0,22],[0,25,0,27],[0,28,0,32]]}
["Descriptif",null,null,null,null,null,null,null,"Niveau d'avancement",null,null,null,null,null,null,null,null,"Suivi des recommandations"]
["Type d'audit","Dénomination de l'audit","Prestataire","Organisme audité","Date de début de mission","Directeurs de Mission","Auditeurs","Date de fin de mission","Analyse préalable","Formulation BdC","Remise du rapport provisoire","Contradictoire","Rapport définitif","Diffusion","Seminaire de restitution","Projet du plan d'action","Validation du plan","Suivi des reco\nSemestre 1","Suivi des reco\nSemestre 2","Suivi des reco\nSemestre 3","Suivi des reco\nSemestre 4","Suivi des reco\nSemestre 5","Suivi des reco\nSemestre 6"]
["aaaaaaaa","aaaaaaaaaaaa","aaaaaaaaaaa","aaaaaaa","aaaaaaaaa","aaaaaaaaaaaaaa","aaaaaaaaaaaaa",{"$f":"Tableau5[Rapport définitif]","v":{"$error":"#VALUE!"}},{"$f":"Tableau5[Date de début de mission]","v":"aaaaaaaaa"},{"$f":"Tableau5[Analyse préalable]+30","v":{"$error":"#VALUE!"}},{"$f":"Tableau5[Formulation BdC]+60","v":{"$error":"#VALUE!"}},{"$f":"Tableau5[Remise du rapport provisoire]+15","v":{"$error":"#VALUE!"}},{"$f":"Tableau5[Contradictoire]+30","v":{"$error":"#VALUE!"}},{"$f":"Tableau5[Rapport définitif]+15","v":{"$error":"#VALUE!"}},{"$f":"Tableau5[Diffusion]+15","v":{"$error":"#VALUE!"}},{"$f":"Tableau5[Seminaire de restitution]+60","v":{"$error":"#VALUE!"}},{"$f":"Tableau5[Projet du plan d''action]+30","v":{"$error":"#VALUE!"}},{"$f":"Tableau5[Validation du plan]+180","v":{"$error":"#VALUE!"}},{"$f":"Tableau5[Suivi des reco\nSemestre 1]+180","v":{"$error":"#VALUE!"}},{"$f":"Tableau5[Suivi des reco\nSemestre 2]+180","v":{"$error":"#VALUE!"}},{"$f":"Tableau5[Suivi des reco\nSemestre 3]+180","v":{"$error":"#VALUE!"}},{"$f":"Tableau5[Suivi des reco\nSemestre 4]+180","v":{"$error":"#VALUE!"}},{"$f":"Tableau5[Suivi des reco\nSemestre 5]+180","v":{"$error":"#VALUE!"}}]

{"sheet":"Données","index":2,"n_rows":28,"n_cols":1,"rows_kept":28,"cut":false,"hidden":true,"merged":[]}
["Pierre Jean BONNOIT"]
["Mathias DIEZ"]
["Loic LE DEUNFF"]
["Arnaud MUDRY"]
["Alain PERROT"]
["Alain SPAENLE"]
["Sylvie ZEILIG"]
["Said BOUNOUA"]
["Patricia DAVANNE"]
["Corinne GALODE"]
["Alexandre LE CORRE"]
["Joel MOSSARD"]
["Oliviana PIAZZA"]
[]
["Jean-Michel VALLET"]
["Anne Sanchez"]
["Jacqueline PEREZ"]
["Francine SCHERPEREEL"]
["Externalisé"]
[]
["Thématique"]
["Structure"]
[]
["Mazars"]
["Eurogroup"]
["Grant Thornton"]
["BearingPoint"]
["Interne"]